bitfinex/quotes_ETHUSD_20250909
["timestamp","ask_amount","ask_price","bid_price","bid_amount"]
[1757456063601,0.001,4315.4,4315.3,2.73153599]
[1757456064039,0.001,4315.4,4315.3,3.20353599]
[1757456064240,0.001,4315.4,4315.3,2.73153599]
[1757456067443,1.5784,4315.4,4315.3,0.82812982]
[1757456067602,1.5784,4315.4,4315.1,0.82812982]
[1757456067807,4.7607,4315.3,4315.1,0.82812982]
[1757456068040,1.1895,4315.2,4315.0,0.82812982]
[1757456068243,0.54554,4315.1,4315.0,0.82812982]
[1757456068424,1.42924,4315.1,4314.9,3.14567182]
[1757456068624,1.1895,4315.0,4314.9,3.14567182]
[1757456069419,1.1895,4315.0,4314.9,2.317542]
[1757456069944,1.1895,4315.0,4314.8,0.83012982]
[1757456069945,5.0665,4315.0,4314.8,0.83012982]
[1757456070120,4.1828,4315.0,4314.9,2.31755081]
[1757456070739,5.0665,4315.0,4314.9,2.31755081]
[1757456070939,5.0665,4315.0,4314.8,0.83012982]
[1757456071142,0.8837,4314.9,4314.8,3.14771129]
[1757456071613,1.1895,4314.9,4314.8,3.14771129]
[1757456072213,1.1895,4314.9,4314.8,0.83012982]
[1757456072428,1.1895,4314.9,4314.8,0.002]
[1757456074539,1.928604,4314.9,4314.8,0.002]
[1757456076160,5.406104,4314.9,4314.8,2.31960452]
[1757456076469,4.1698,4314.9,4314.8,0.002]
[1757456076635,4.6088,4314.9,4314.8,0.002]
[1757456076833,5.106,4314.9,4314.8,0.002]
[1757456077454,5.106,4314.9,4314.8,0.1172]
[1757456077857,5.849054,4314.9,4314.8,0.1172]
[1757456079767,1.972054,4314.9,4314.8,0.1172]
[1757456079969,5.106,4314.9,4314.8,0.1172]
[1757456080673,5.107,4314.9,4314.8,0.1172]
[1757456081747,1.229,4314.9,4314.8,0.1172]
[1757456081947,5.107,4314.9,4314.8,0.1172]
[1757456082546,5.107,4314.9,4314.8,0.002]
[1757456082748,8.6311985,4314.9,4314.8,0.002]
[1757456088450,1.99664769,4314.9,4314.8,0.002]
[1757456088659,3.10755081,4314.9,4314.8,0.002]
[1757456088985,4.1708,4314.9,4314.8,0.002]
[1757456089498,6.92735081,4314.9,4314.8,0.002]
[1757456089698,7.42455081,4314.9,4314.8,0.002]
[1757456092682,7.42555081,4314.9,4314.8,0.002]
[1757456093155,8.90079205,4314.9,4314.8,0.002]
[1757456094094,7.96459205,4314.9,4314.8,0.002]
[1757456094296,0.001,4314.9,4314.8,0.2941]
[1757456094483,0.001,4314.9,4314.8,1.2292]
[1757456094484,3.879,4314.9,4314.8,1.2292]
[1757456094686,3.879,4314.9,4314.8,0.2941]
[1757456095293,3.879,4314.9,4314.8,0.002]
[1757456097098,7.33391056,4314.9,4314.8,0.002]
[1757456097399,8.27011056,4314.9,4314.8,0.002]
[1757456099766,5.95255975,4314.9,4314.8,0.002]
[1757456100196,7.33391056,4314.9,4314.8,0.002]
[1757456100389,4.72355975,4314.9,4314.8,0.002]
[1757456100902,7.33391056,4314.9,4314.8,0.002]
[1757456101579,5.01635975,4314.9,4314.8,0.002]
[1757456101978,7.33391056,4314.9,4314.8,0.002]
[1757456102493,7.79271056,4314.9,4314.8,0.002]
[1757456103298,8.24501056,4314.9,4314.8,0.002]
[1757456103666,5.92745975,4314.9,4314.8,0.002]
[1757456104004,5.92745975,4314.9,4314.8,1.2379]
[1757456104005,3.879,4314.9,4314.8,1.2379]
[1757456104506,3.879,4314.9,4314.8,0.3076]
[1757456104665,0.001,4314.9,4314.8,0.3076]
[1757456104871,3.879,4314.9,4314.8,0.3076]
[1757456105802,3.879,4314.9,4314.8,0.7573]
[1757456106105,3.879,4314.9,4314.8,0.3076]
[1757456106300,0.001,4314.9,4314.8,0.7882]
[1757456106482,3.879,4314.9,4314.8,4.26917616]
[1757456106805,3.879,4314.9,4314.8,1.3531]
[1757456106999,3.879,4314.9,4314.8,0.4228]
[1757456107377,3.879,4314.9,4314.8,0.1172]
[1757456107582,3.879,4314.9,4314.8,2.43480452]
[1757456107795,3.879,4314.9,4314.8,3.67070452]
[1757456108729,3.879,4314.9,4314.8,3.19010452]
[1757456109217,3.879,4314.9,4314.8,2.74040452]
[1757456109408,3.879,4314.9,4314.8,0.1172]
[1757456109716,3.879,4314.9,4314.8,2.43480452]
[1757456110221,3.879,4314.9,4314.8,0.1172]
[1757456110408,4.1657,4314.9,4314.8,0.1172]
[1757456111322,3.879,4314.9,4314.8,2.43480452]
[1757456111523,3.879,4314.9,4314.8,0.1172]
[1757456111819,4.1657,4314.9,4314.8,0.1172]
[1757456112321,4.85128,4314.9,4314.8,0.1172]
[1757456112624,5.76238,4314.9,4314.8,0.1172]
[1757456113494,5.31008,4314.9,4314.8,0.1172]
[1757456113695,3.879,4314.9,4314.8,2.74040452]
[1757456113923,3.879,4314.9,4314.8,3.67070452]
[1757456114314,3.879,4314.9,4314.8,2.74040452]
[1757456114518,3.879,4314.9,4314.8,0.4228]
[1757456118602,0.001,4314.9,4314.8,0.4228]
[1757456118807,0.001,4314.9,4314.8,3.67070452]
[1757456118808,3.878,4314.9,4314.8,3.67070452]
[1757456119917,3.878,4314.9,4314.8,0.4228]
[1757456120598,3.878,4314.9,4314.8,0.1172]
[1757456120799,4.1647,4314.9,4314.8,0.1172]
[1757456121932,4.1647,4314.9,4314.8,0.002]
[1757456121933,8.03360081,4314.9,4314.8,0.002]
[1757456122230,5.71605,4314.9,4314.8,0.002]
[1757456122430,4.80495,4314.9,4314.8,0.002]
[1757456124096,5.26375,4314.9,4314.8,0.002]
[1757456124971,7.58130081,4314.9,4314.8,0.002]
[1757456125179,8.03360081,4314.9,4314.8,0.002]
[1757456133014,11.03360081,4314.9,4314.8,0.002]
[1757456133215,11.16378227,4314.9,4314.8,0.002]
[1757456136105,11.03360081,4314.9,4314.8,0.002]
[1757456136630,2.95880081,4314.9,4314.8,0.3164]
[1757456136802,6.83580081,4314.9,4314.8,1.2236]
[1757456137735,6.83580081,4314.9,4314.8,0.7709]
[1757456138318,6.83580081,4314.9,4314.8,0.3164]
[1757456140839,0.64125,4314.9,4314.8,0.3164]
[1757456141005,3.877,4314.9,4314.8,1.2236]
[1757456141707,6.19455081,4314.9,4314.8,1.2236]
[1757456142454,3.877,4314.9,4314.8,1.2236]
[1757456142654,6.19455081,4314.9,4314.8,1.2236]
[1757456143760,6.19455081,4314.9,4314.8,0.3164]
[1757456144416,6.19455081,4314.9,4314.8,0.7709]
[1757456145456,6.19455081,4314.9,4314.8,1.2236]
[1757456147153,6.19455081,4314.9,4314.8,0.3164]
[1757456158968,6.19455081,4314.9,4314.8,1.2236]
[1757456158969,0.001,4314.9,4314.8,1.2236]
[1757456159185,3.876,4314.9,4314.8,1.3388]
[1757456159392,3.876,4314.9,4314.8,0.4316]
[1757456159901,3.876,4314.9,4314.8,0.1172]
[1757456160807,4.6167,4314.9,4314.8,0.1172]
[1757456160978,7.64431415,4314.9,4314.8,0.002]
[1757456165205,3.76931415,4314.9,4314.8,0.002]
[1757456165421,7.64431415,4314.9,4314.8,0.002]
[1757456166718,7.64431415,4314.9,4314.8,0.3008]
[1757456166719,0.25786334,4314.9,4314.8,0.3008]
[1757456166919,4.13286334,4314.9,4314.8,0.3008]
[1757456167122,6.74501415,4314.9,4314.8,0.002]
[1757456167415,7.20661415,4314.9,4314.8,0.002]
[1757456167932,7.70241415,4314.9,4314.8,0.002]
[1757456168231,7.20661415,4314.9,4314.8,0.002]
[1757456168389,6.74501415,4314.9,4314.8,0.002]
[1757456168803,7.24081415,4314.9,4314.8,0.002]
[1757456169034,7.70241415,4314.9,4314.8,0.002]
[1757456173345,10.70241415,4314.9,4314.8,0.002]
[1757456173536,11.0498677,4314.9,4314.8,0.002]
[1757456173734,11.55023194,4314.9,4314.8,0.002]
[1757456174248,11.0498677,4314.9,4314.8,0.002]
[1757456174410,17.29049723,4314.9,4314.8,0.002]
[1757456175122,17.79072596,4314.9,4314.8,0.002]
[1757456175321,17.29049723,4314.9,4314.8,0.002]
[1757456178015,17.79041073,4314.9,4314.8,0.002]
[1757456178948,20.23041073,4314.9,4314.8,0.002]
[1757456182955,21.02241073,4314.9,4314.8,0.002]
[1757456183252,21.02241073,4314.9,4313.6,0.4655]
[1757456183253,3.232,4314.3,4313.8,1e-08]
[1757456183418,11.55871757,4313.9,4313.8,1e-08]
[1757456183623,6.46005509,4313.9,4313.8,1e-08]
[1757456183826,5.44838243,4313.9,4313.8,0.29880001]
[1757456184023,9.19208804,4313.9,4313.8,1.25040001]
[1757456184263,11.1828894,4313.9,4313.8,1.25040001]
[1757456187338,11.1828894,4313.9,4313.8,0.76430001]
[1757456189122,11.1828894,4313.9,4313.8,0.29880001]
[1757456189754,11.1828894,4313.9,4313.8,0.76430001]
[1757456189955,11.1828894,4313.9,4313.8,1.25040001]
[1757456191148,11.1828894,4313.9,4313.8,0.76430001]
[1757456192371,11.1828894,4313.9,4313.8,0.29880001]
[1757456194637,11.1828894,4313.9,4313.8,1e-08]
[1757456196859,7.3088894,4313.9,4313.8,0.29470001]
[1757456197068,7.3088894,4313.9,4313.8,0.75500001]
[1757456197069,9.19208804,4313.9,4313.8,0.75500001]
[1757456197237,9.19208804,4313.9,4313.8,1.20080001]
[1757456197437,9.19208804,4313.9,4313.8,0.00200001]
[1757456197855,9.19208804,4313.9,4313.8,0.29670001]
[1757456198052,11.16236805,4313.9,4313.8,0.29670001]
[1757456199489,11.16236805,4313.9,4313.8,0.74050001]
[1757456199874,7.28836805,4313.9,4313.8,0.74050001]
[1757456200201,11.16236805,4313.9,4313.8,0.74050001]
[1757456200686,11.16236805,4313.9,4313.8,0.29670001]
[1757456203466,11.16236805,4313.9,4313.8,0.00200001]
[1757456203910,12.39846805,4313.9,4313.8,0.00200001]
[1757456205089,11.95066805,4313.9,4313.8,0.00200001]
[1757456205290,12.52865294,4313.9,4313.8,0.00200001]
[1757456205502,13.24563049,4313.9,4313.8,0.00200001]
[1757456210612,13.24582411,4313.9,4313.8,0.00200001]
[1757456211809,2.31824925,4313.6,4313.5,1e-08]
[1757456211985,14.48851518,4313.6,4313.5,1e-08]
[1757456212180,16.57197124,4313.6,4313.5,1e-08]
[1757456212600,16.66477856,4313.6,4313.5,1e-08]
[1757456215121,12.79077856,4313.6,4313.5,1e-08]
[1757456215309,19.66477856,4313.6,4313.5,1e-08]
[1757456217714,22.89677856,4313.6,4313.5,1e-08]
[1757456218315,19.02277856,4313.6,4313.5,1e-08]
[1757456218523,22.89677856,4313.6,4313.5,1e-08]
[1757456220294,15.72454903,4313.6,4313.5,1e-08]
[1757456220496,11.05854903,4313.6,4313.5,1e-08]
[1757456220695,14.62804903,4313.6,4313.5,0.29470001]
[1757456220993,10.75404903,4313.6,4313.5,0.29470001]
[1757456221196,14.62804903,4313.6,4313.5,0.29470001]
[1757456221820,14.62804903,4313.6,4313.5,1e-08]
[1757456223424,8.31404903,4313.6,4313.5,0.31590001]
[1757456223627,8.31404903,4313.6,4313.5,1.23660001]
[1757456223628,9.41531982,4313.6,4313.5,1.23660001]
[1757456224535,9.41531982,4313.6,4313.5,0.31590001]
[1757456226134,9.41531982,4313.6,4313.5,0.77870001]
[1757456226929,9.70161982,4313.6,4313.5,1e-08]
[1757456227133,7.56449062,4313.6,4313.5,0.77380001]
[1757456227451,9.41531982,4313.6,4313.5,1.23660001]
[1757456227651,9.28505657,4313.6,4313.5,1.23660001]
[1757456228046,9.41515219,4313.6,4313.5,0.31590001]
[1757456230041,9.70145219,4313.6,4313.5,1e-08]
[1757456230258,10.41805231,4313.6,4313.5,1e-08]
[1757456230458,12.60825636,4313.6,4313.5,1e-08]
[1757456230974,12.60830154,4313.6,4313.5,1e-08]
[1757456231477,13.10540154,4313.6,4313.5,1e-08]
[1757456231660,13.56220154,4313.6,4313.5,1e-08]
[1757456232573,13.56320154,4313.6,4313.5,1e-08]
[1757456232959,13.06610154,4313.6,4313.5,1e-08]
[1757456233167,12.60930154,4313.6,4313.5,1e-08]
[1757456233358,12.32300154,4313.6,4313.5,1e-08]
[1757456235342,12.60930154,4313.6,4313.5,1e-08]
[1757456235679,13.06610154,4313.6,4313.5,1e-08]
[1757456235841,13.5633954,4313.6,4313.5,1e-08]
[1757456237014,13.5633954,4313.6,4313.5,0.31590001]
[1757456237015,7.91094615,4313.6,4313.5,0.31590001]
[1757456237155,1.781,4313.6,4313.5,1.23660001]
[1757456237355,3.918,4313.6,4313.5,1.35180001]
[1757456237574,3.918,4313.6,4313.5,1.71902027]
[1757456237777,3.918,4313.6,4313.5,1.35180001]
[1757456238163,6.23624925,4313.6,4313.5,1.23660001]
[1757456238377,3.918,4313.6,4313.5,1.23660001]
[1757456244064,6.23624925,4313.6,4313.5,1.23660001]
[1757456244259,6.52254925,4313.6,4313.5,1e-08]
[1757456244466,7.84640466,4313.6,4313.5,1e-08]
[1757456244858,7.38960466,4313.6,4313.5,1e-08]
[1757456245689,9.20650466,4313.6,4313.5,1e-08]
[1757456245895,13.08850466,4313.6,4313.5,1e-08]
[1757456253683,13.21856084,4313.6,4313.5,1e-08]
[1757456254607,13.21856073,4313.6,4313.5,1e-08]
[1757456255110,13.08850466,4313.6,4313.5,1e-08]
[1757456255821,13.21855919,4313.6,4313.5,1e-08]
[1757456256824,13.08850466,4313.6,4313.5,1e-08]
[1757456257626,13.21855971,4313.6,4313.5,1e-08]
[1757456258693,8.09635971,4313.6,4313.5,0.30190001]
[1757456258903,11.84230466,4313.6,4313.5,0.30190001]
[1757456259103,11.84230466,4313.6,4313.5,0.73030001]
[1757456259290,11.84230466,4313.6,4313.5,0.30190001]
[1757456259489,11.84230466,4313.6,4313.5,1.20380001]
[1757456260289,11.84230466,4313.6,4313.5,0.30190001]
[1757456260290,7.96630466,4313.6,4313.5,0.30190001]
[1757456260493,11.84230466,4313.6,4313.5,0.30190001]
[1757456262203,11.84230466,4313.6,4313.5,1e-08]
[1757456263028,12.13650466,4313.6,4313.5,1e-08]
[1757456264103,13.08120466,4313.6,4313.5,1e-08]
[1757456266443,13.21127922,4313.6,4313.5,1e-08]
[1757456267109,12.26657922,4313.6,4313.5,1e-08]
[1757456267310,13.21127922,4313.6,4313.5,1e-08]
[1757456267525,12.72837922,4313.6,4313.5,1e-08]
[1757456267724,11.97237922,4313.6,4313.5,1e-08]
[1757456268216,11.84230466,4313.6,4313.5,1e-08]
[1757456269231,7.96630466,4313.6,4313.5,1.20380001]
[1757456269449,11.84030466,4313.6,4313.5,1.20380001]
[1757456270447,11.84030466,4313.6,4313.5,0.73030001]
[1757456270742,11.84030466,4313.6,4313.5,0.30190001]
[1757456272218,12.34039308,4313.6,4313.5,0.30190001]
[1757456272431,12.55745223,4313.6,4313.5,0.30190001]
[1757456273426,12.55745223,4313.6,4313.5,0.73030001]
[1757456274569,12.55745223,4313.6,4313.5,0.30190001]
[1757456275954,8.68345223,4313.6,4313.5,0.30190001]
[1757456276160,12.05736381,4313.6,4313.5,0.30190001]
[1757456276361,12.55745223,4313.6,4313.5,0.30190001]
[1757456277067,13.79635223,4313.6,4313.5,1e-08]
[1757456280766,13.79664942,4313.6,4313.5,1e-08]
[1757456281661,8.68374942,4313.6,4313.5,0.28660001]
[1757456281867,12.057661,4313.6,4313.5,0.28660001]
[1757456282076,12.55774942,4313.6,4313.5,0.28660001]
[1757456283645,8.68374942,4313.6,4313.5,0.28660001]
[1757456283843,12.057661,4313.6,4313.5,0.28660001]
[1757456284152,12.55774942,4313.6,4313.5,0.28660001]
[1757456284359,8.68374942,4313.6,4313.5,0.28660001]
[1757456284584,12.057661,4313.6,4313.5,0.28660001]
[1757456284883,12.55774942,4313.6,4313.5,0.28660001]
[1757456285475,12.55774942,4313.6,4313.5,1e-08]
[1757456287456,14.99874942,4313.6,4313.5,1e-08]
[1757456287662,12.55774942,4313.6,4313.5,1e-08]
[1757456292120,7.81669401,4313.6,4313.5,1.22310001]
[1757456292325,1.781,4313.6,4313.5,1.22310001]
[1757456292487,5.655,4313.6,4313.5,1.22310001]
[1757456297098,7.97324925,4313.6,4313.5,0.28660001]
[1757456301335,8.27554925,4313.6,4313.5,1e-08]
[1757456301534,7.97324925,4313.6,4313.5,1e-08]
[1757456305148,8.27554925,4313.6,4313.5,1e-08]
[1757456305341,5.655,4313.6,4313.5,0.76750001]
[1757456305641,5.655,4313.6,4313.5,1.22310001]
[1757456306241,1.781,4313.6,4313.5,1.22310001]
[1757456306547,7.97224925,4313.6,4313.5,0.76750001]
[1757456306707,7.97224925,4313.6,4313.5,0.28660001]
[1757456312523,5.654,4313.6,4313.5,0.28660001]
[1757456312750,5.654,4313.6,4313.5,1.24830001]
[1757456312953,7.97224925,4313.6,4313.5,1.24830001]
[1757456315259,5.654,4313.6,4313.5,1.24830001]
[1757456315961,7.97224925,4313.6,4313.5,1.24830001]
[1757456316668,5.654,4313.6,4313.5,1.24830001]
[1757456316867,1.781,4313.6,4313.5,1.24830001]
[1757456317068,5.653,4313.6,4313.5,1.24830001]
[1757456317965,1.781,4313.6,4313.5,3.70315301]
[1757456318267,5.653,4313.6,4313.5,3.81835301]
[1757456318766,5.653,4313.6,4313.5,1.50005001]
[1757456321266,5.653,4313.6,4313.5,0.89120001]
[1757456321628,5.653,4313.6,4313.5,1.36350001]
[1757456330244,1.781,4313.6,4313.5,1.36350001]
[1757456330445,5.653,4313.6,4313.5,1.36350001]
[1757456332340,5.653,4313.6,4313.5,0.40180001]
[1757456337975,5.653,4313.6,4313.5,0.11520001]
[1757456338172,5.652,4313.6,4313.5,0.42340001]
[1757456338488,1.781,4313.6,4313.5,0.42340001]
[1757456338796,5.652,4313.6,4313.5,0.42340001]
[1757456340570,1.781,4313.6,4313.5,0.42340001]
[1757456340769,5.652,4313.6,4313.5,0.42340001]
[1757456351440,5.651,4313.6,4313.5,0.11520001]
[1757456353737,5.957,4313.6,4313.5,0.11520001]
[1757456353936,9.19794925,4313.6,4313.5,0.11520001]
[1757456354090,10.34965993,4313.6,4313.5,0.11520001]
[1757456356576,9.19794925,4313.6,4313.5,0.11520001]
[1757456357068,5.32794925,4313.6,4313.5,0.11520001]
[1757456357236,9.19794925,4313.6,4313.5,0.11520001]
[1757456361329,9.31314926,4313.6,4313.5,0.11520001]
[1757456364877,6.99490001,4313.6,4313.5,0.11520001]
[1757456365032,9.31314926,4313.6,4313.5,0.11520001]
[1757456365232,8.53864926,4313.6,4313.5,0.11520001]
[1757456365432,9.31314926,4313.6,4313.5,0.11520001]
[1757456377786,8.85894926,4313.6,4313.5,0.11520001]
[1757456378685,10.50101914,4313.6,4313.5,1e-08]
[1757456378896,14.21893467,4313.6,4313.5,1e-08]
[1757456380985,14.34917848,4313.6,4313.5,1e-08]
[1757456382386,14.34910081,4313.6,4313.5,1e-08]
[1757456384289,14.13181585,4313.6,4313.5,1e-08]
[1757456384491,14.34858805,4313.6,4313.5,1e-08]
[1757456387402,15.14058805,4313.6,4313.5,1e-08]
[1757456388309,15.14037449,4313.6,4313.5,1e-08]
[1757456391890,3.1152,4313.5,4313.1,1e-08]
[1757456392097,2.31846424,4313.2,4313.1,1e-08]
[1757456392310,6.61448603,4313.2,4313.1,1e-08]
[1757456392521,7.55718603,4313.2,4313.1,1e-08]
[1757456393219,2.44848603,4313.2,4313.1,1e-08]
[1757456393418,2.44848603,4313.2,4313.1,1.20710001]
[1757456393419,5.31846424,4313.2,4313.1,1.20710001]
[1757456393717,3.869,4313.2,4313.1,1.20710001]
[1757456394333,0.1152,4313.5,4313.1,3.64922148]
[1757456394506,0.1152,4313.5,4313.2,10.63140421]
[1757456394507,3.869,4313.4,4313.2,10.63140421]
[1757456394830,3.869,4313.4,4313.3,1.2071]
[1757456396104,3.869,4313.4,4313.3,3.52551049]
[1757456396522,3.869,4313.4,4313.3,1.2071]
[1757456404659,3.869,4313.4,4313.3,1.3243]
[1757456406362,3.869,4313.4,4313.3,1.93299291]
[1757456410071,3.869,4313.4,4313.3,0.4251]
[1757456413572,3.867,4313.4,4313.3,0.9051]
[1757456413788,3.867,4313.4,4313.3,1.3653]
[1757456414574,3.867,4313.4,4313.3,0.4251]
[1757456414875,3.867,4313.4,4313.3,0.1172]
[1757456416756,3.867,4313.4,4313.3,0.4033]
[1757456416956,3.867,4313.4,4313.3,1.3435]
[1757456417776,5.0879,4313.4,4313.3,0.1172]
[1757456417963,4.1734,4313.4,4313.3,0.1172]
[1757456418354,3.867,4313.4,4313.3,0.1172]
[1757456418559,3.867,4313.4,4313.3,0.4033]
[1757456420402,3.867,4313.4,4313.3,0.8833]
[1757456420585,3.867,4313.4,4313.3,1.3435]
[1757456422664,3.868,4313.4,4313.3,1.3435]
[1757456423066,0.001,4313.4,4313.3,1.3435]
[1757456423461,3.868,4313.4,4313.3,1.3435]
[1757456423789,3.868,4313.4,4313.3,0.4033]
[1757456425896,3.867,4313.4,4313.3,0.4033]
[1757456428713,3.867,4313.4,4313.3,0.1172]
[1757456429016,4.6208,4313.4,4313.3,0.1172]
[1757456429310,5.0879,4313.4,4313.3,0.1172]
[1757456430004,4.1734,4313.4,4313.3,0.1172]
[1757456431808,4.6195,4313.4,4313.3,0.1172]
[1757456433113,5.99264648,4313.4,4313.3,0.1172]
[1757456433318,8.31100322,4313.4,4313.3,0.1172]
[1757456433817,5.99264648,4313.4,4313.3,0.1172]
[1757456435226,8.31100322,4313.4,4313.3,0.1172]
[1757456437120,8.31100322,4313.4,4313.3,0.002]
[1757456440825,8.44133994,4313.4,4313.3,0.002]
[1757456444345,4.12923994,4313.4,4313.3,0.002]
[1757456444543,7.23313994,4313.4,4313.3,0.002]
[1757456444726,7.10280322,4313.4,4313.3,0.002]
[1757456445133,7.41720322,4313.4,4313.3,0.002]
[1757456448255,7.54740681,4313.4,4313.3,0.002]
[1757456448419,7.99350681,4313.4,4313.3,0.002]
[1757456449035,7.86330322,4313.4,4313.3,0.002]
[1757456449244,7.99348431,4313.4,4313.3,0.002]
[1757456450483,8.44917872,4313.4,4313.3,0.002]
[1757456451628,8.44917543,4313.4,4313.3,0.002]
[1757456451855,8.31900322,4313.4,4313.3,0.002]
[1757456452129,8.44917354,4313.4,4313.3,0.002]
[1757456456542,8.44917708,4313.4,4313.3,0.002]
[1757456457640,8.44918554,4313.4,4313.3,0.002]
[1757456459446,7.99348554,4313.4,4313.3,0.002]
[1757456460300,7.54738554,4313.4,4313.3,0.002]
[1757456460596,7.54738554,4313.4,4313.3,0.2958]
[1757456460597,7.23298554,4313.4,4313.3,0.2958]
[1757456461091,7.54738554,4313.4,4313.3,0.002]
[1757456462664,8.00158554,4313.4,4313.3,0.002]
[1757456464280,8.48248554,4313.4,4313.3,0.002]
[1757456467486,8.02828554,4313.4,4313.3,0.002]
[1757456467685,8.48248554,4313.4,4313.3,0.002]
[1757456472175,8.98321438,4313.4,4313.3,0.002]
[1757456474191,8.48248554,4313.4,4313.3,0.002]
[1757456475209,8.98320656,4313.4,4313.3,0.002]
[1757456475417,9.20053655,4313.4,4313.3,0.002]
[1757456481216,9.20074626,4313.4,4313.3,0.002]
[1757456481617,8.26564626,4313.4,4313.3,0.002]
[1757456482214,7.54759525,4313.4,4313.3,0.002]
[1757456483014,7.23319525,4313.4,4313.3,0.002]
[1757456483728,7.23319525,4313.4,4313.3,0.2905]
[1757456484363,7.23319525,4313.4,4312.4,0.002]
[1757456484364,0.792,4313.1,4312.4,0.002]
[1757456484588,2.31884057,4312.5,4312.4,0.002]
[1757456484876,11.3899326,4312.5,4312.4,0.002]
[1757456485054,15.82202057,4312.5,4312.4,0.002]
[1757456485253,2.31894812,4312.3,4312.2,1e-08]
[1757456485414,6.5296542,4312.3,4312.2,1e-08]
[1757456485617,8.26321849,4312.3,4312.2,1e-08]
[1757456485813,9.80381164,4312.3,4312.2,1e-08]
[1757456486057,9.8966489,4312.3,4312.2,1e-08]
[1757456488251,9.67933485,4312.3,4312.2,1e-08]
[1757456489328,9.17857056,4312.3,4312.2,1e-08]
[1757456493032,9.17477056,4312.3,4312.2,1e-08]
[1757456502676,0.9072,4312.2,4311.8,1e-08]
[1757456502878,2.3193784,4311.5,4311.4,0.002]
[1757456503143,11.2609784,4311.5,4311.4,0.002]
[1757456503422,11.80322881,4311.5,4311.4,0.002]
[1757456503582,12.95727676,4311.5,4311.4,0.002]
[1757456504604,13.13196033,4311.5,4311.4,0.002]
[1757456508887,12.68256033,4311.5,4311.4,0.002]
[1757456509812,13.26186636,4311.5,4311.4,0.002]
[1757456510092,12.81246636,4311.5,4311.4,0.002]
[1757456511801,13.26186636,4311.5,4311.4,0.002]
[1757456514000,13.76155122,4311.5,4311.4,0.002]
[1757456514221,13.97863699,4311.5,4311.4,0.002]
[1757456515198,13.97963699,4311.5,4311.4,0.002]
[1757456516030,14.47333699,4311.5,4311.4,0.002]
[1757456518011,14.47333699,4311.5,4311.3,1e-08]
[1757456518012,5.3194322,4311.4,4311.3,1e-08]
[1757456518346,12.65358578,4311.4,4311.3,1e-08]
[1757456518499,12.95018578,4311.4,4311.3,1e-08]
[1757456521524,20.3433103,4311.4,4311.3,1e-08]
[1757456521706,2.3195398,4311.2,4311.1,1e-08]
[1757456521904,9.1845398,4311.2,4311.1,1e-08]
[1757456522112,13.18946486,4311.2,4311.1,1e-08]
[1757456522609,0.792,4311.1,4310.8,0.025]
[1757456522811,5.31970122,4310.9,4310.8,0.025]
[1757456523019,5.96479302,4310.9,4310.8,0.025]
[1757456523216,8.55592583,4310.9,4310.8,0.025]
[1757456523704,7.32042583,4310.9,4310.8,0.31130001]
[1757456523933,11.18542583,4310.9,4310.8,0.31130001]
[1757456525063,11.18542583,4310.9,4310.8,1e-08]
[1757456526825,11.18542583,4310.9,4310.8,0.00200001]
[1757456527667,11.1852816,4310.9,4310.8,0.00200001]
[1757456528950,11.4833816,4310.9,4310.8,0.00200001]
[1757456529360,11.9207816,4310.9,4310.8,0.00200001]
[1757456530307,8.0557816,4310.9,4310.8,0.00200001]
[1757456530466,11.9207816,4310.9,4310.8,0.00200001]
[1757456532568,12.4207816,4310.9,4310.8,0.00200001]
[1757456534109,11.9207816,4310.9,4310.8,0.00200001]
[1757456535177,11.92087417,4310.9,4310.8,0.00200001]
[1757456535509,7.32037417,4310.9,4310.8,0.80790001]
[1757456535709,10.03132622,4310.9,4310.8,0.80790001]
[1757456538228,10.03172085,4310.9,4310.8,0.80790001]
[1757456538699,6.16672085,4310.9,4310.8,0.80790001]
[1757456538906,10.03172085,4310.9,4310.8,1.23940001]
[1757456539714,10.03172085,4310.9,4310.8,0.80790001]
[1757456542203,10.76722085,4310.9,4310.8,0.00200001]
[1757456542411,13.03512882,4310.9,4310.8,0.00200001]
[1757456542999,12.29962882,4310.9,4310.8,0.00200001]
[1757456546559,12.3002985,4310.9,4310.8,0.00200001]
[1757456548121,6.16739053,4310.9,4310.8,1.23940001]
[1757456548446,10.03239053,4310.9,4310.8,1.23940001]
[1757456549660,9.81513439,4310.9,4310.8,1.23940001]
[1757456551336,10.03252132,4310.9,4310.8,1.23940001]
[1757456552772,7.73113439,4310.9,4310.8,1.23940001]
[1757456552976,11.0950549,4310.9,4310.8,1.23940001]
[1757456554651,1.781,4310.9,4310.8,0.93204001]
[1757456554989,5.645,4310.9,4310.8,1.36764001]
[1757456560355,5.645,4310.9,4310.8,1.24350001]
[1757456561783,5.646,4310.9,4310.8,1.24350001]
[1757456563762,5.646,4310.9,4310.8,3.56325504]
[1757456564058,5.646,4310.9,4310.8,1.24350001]
[1757456564689,5.646,4310.9,4310.8,1.35870001]
[1757456566056,5.646,4310.9,4310.8,0.92310001]
[1757456569793,5.646,4310.9,4310.8,3.24285504]
[1757456570382,5.646,4310.9,4310.8,0.92310001]
[1757456574006,5.645,4310.9,4310.8,3.84289497]
[1757456574167,1.782,4310.9,4310.8,4.27849497]
[1757456574597,5.645,4310.9,4310.8,4.27849497]
[1757456576934,1.782,4310.9,4310.8,3.72769497]
[1757456577112,5.645,4310.9,4310.8,3.84289497]
[1757456580450,5.644,4310.9,4310.8,4.30169252]
[1757456580618,5.644,4310.9,4310.8,4.27849497]
[1757456582469,5.644,4310.9,4310.8,3.34829497]
[1757456582611,5.644,4310.9,4310.8,2.43695504]
[1757456587147,5.9388,4310.9,4310.8,0.11720001]
[1757456587349,6.3776,4310.9,4310.8,0.11720001]
[1757456588975,6.3776,4310.9,4310.8,2.43695504]
[1757456589121,6.3776,4310.9,4310.8,0.11720001]
[1757456589470,6.3776,4310.9,4310.8,2.43695504]